bitfinex/quotes_BTCUSD_20250530
["timestamp","ask_amount","ask_price","bid_price","bid_amount"]
[1748647250546,0.009609,104060.0,104050.0,0.23574114]
[1748647250753,0.22115073,104070.0,104060.0,0.21141601]
[1748647250964,0.00014657,104070.0,104060.0,0.27535023]
[1748647251190,0.00975465,104070.0,104060.0,0.27535023]
[1748647251404,0.00014657,104070.0,104060.0,0.27535023]
[1748647251839,0.00214657,104070.0,104060.0,0.27535023]
[1748647252466,0.00414657,104070.0,104060.0,0.27535023]
[1748647253333,0.00414657,104070.0,104060.0,0.27347023]
[1748647253765,0.01375474,104070.0,104060.0,0.27347023]
[1748647254189,0.01375474,104070.0,104050.0,0.2165212]
[1748647254190,0.20180599,104060.0,104050.0,0.2165212]
[1748647254402,0.23063448,104060.0,104050.0,0.2165212]
[1748647254614,0.22104645,104050.0,104040.0,0.31898465]
[1748647254824,0.25232566,104060.0,104050.0,0.19221528]
[1748647255038,0.24271582,104060.0,104050.0,0.20182585]
[1748647255252,0.24271582,104060.0,104040.0,0.31898382]
[1748647255253,0.00960993,104050.0,104040.0,0.31898382]
[1748647255476,0.2619354,104060.0,104050.0,0.20182585]
[1748647255681,0.2619354,104060.0,104050.0,0.2548679]
[1748647255889,0.26193457,104060.0,104050.0,0.26447829]
[1748647256093,0.22771527,104060.0,104050.0,0.26323228]
[1748647256336,0.23063458,104060.0,104050.0,0.24525733]
[1748647256549,0.2018253,104050.0,104040.0,0.28474497]
[1748647256791,0.22104608,104050.0,104040.0,0.31357937]
[1748647257009,0.24026658,104050.0,104040.0,0.30396815]
[1748647257221,0.20184516,104040.0,104030.0,0.68246484]
[1748647257439,0.21145573,104040.0,104030.0,1.17943594]
[1748647257696,0.01922198,104040.0,104030.0,1.1890479]
[1748647257915,0.01922189,104040.0,104030.0,1.1890479]
[1748647258162,0.22106769,104040.0,104030.0,0.0958543]
[1748647258375,0.22106769,104040.0,104030.0,0.2868799]
[1748647258589,0.2114561,104040.0,104030.0,0.2868799]
[1748647258818,0.22106751,104040.0,104030.0,0.07840292]
[1748647259046,0.22106797,104040.0,104030.0,0.21447717]
[1748647259517,0.21145647,104040.0,104030.0,0.006]
[1748647259744,0.21145647,104040.0,104030.0,0.003]
[1748647259952,0.2114561,104040.0,104030.0,0.003]
[1748647260169,0.18006769,104040.0,104030.0,0.005]
[1748647260422,0.17045665,104040.0,104030.0,0.005]
[1748647260660,0.17045665,104040.0,104030.0,0.002]
[1748647260869,0.17045665,104040.0,104030.0,0.003]
[1748647261302,0.20185665,104040.0,104030.0,0.003]
[1748647261521,0.29771095,104040.0,104030.0,0.003]
[1748647262381,0.29771095,104040.0,104030.0,0.002]
[1748647262593,0.20186465,104030.0,104020.0,0.01502059]
[1748647262813,0.23326465,104030.0,104020.0,0.05052265]
[1748647263039,0.19230769,104000.0,103990.0,0.74612636]
[1748647263325,0.22115244,104000.0,103990.0,0.25994606]
[1748647263533,0.19230581,104010.0,104000.0,0.34]
[1748647263534,0.22114872,104010.0,104000.0,0.34]
[1748647263756,0.22114872,104010.0,104000.0,0.43251122]
[1748647263988,0.21153463,104010.0,104000.0,0.00048881]
[1748647264208,0.24293463,104010.0,104000.0,0.00048881]
[1748647264432,0.21153463,104010.0,104000.0,0.00048881]
[1748647264646,0.24293463,104010.0,104000.0,0.00048881]
[1748647265090,0.30264738,104030.0,104000.0,0.03168881]
[1748647265316,0.00961113,104040.0,104030.0,0.00961261]
[1748647265535,0.01922189,104040.0,104030.0,0.23308867]
[1748647265736,0.0384447,104040.0,104030.0,0.21146156]
[1748647265951,0.23067845,104040.0,104030.0,0.20184923]
[1748647266158,0.23070081,104030.0,104010.0,0.13848606]
[1748647266374,0.21149731,104020.0,104010.0,0.06235482]
[1748647266583,0.21149731,104020.0,104010.0,0.20372096]
[1748647266803,0.21149731,104020.0,104010.0,0.22294959]
[1748647267032,0.20188415,104020.0,104010.0,0.01143176]
[1748647267442,0.221131,104010.0,104000.0,0.64450306]
[1748647267648,0.01922771,104010.0,104000.0,1.1295071]
[1748647267857,0.17049842,104020.0,104010.0,0.20190356]
[1748647268086,0.00961325,104020.0,104010.0,0.31364268]
[1748647268340,0.22110946,104020.0,104010.0,0.30402887]
[1748647268551,0.21151756,104010.0,104000.0,1.120892]
[1748647268759,0.01922771,104010.0,104000.0,1.14212155]
[1748647268968,0.0288418,104010.0,104000.0,1.14212155]
[1748647269176,0.01922771,104010.0,104000.0,1.14212155]
[1748647269399,0.01922771,104010.0,104000.0,1.11327708]
[1748647269400,0.23074517,104010.0,104000.0,1.11327708]
[1748647269662,0.01922771,104010.0,104000.0,1.12289181]
[1748647269859,0.24035953,104010.0,104000.0,1.122892]
[1748647270075,0.23074517,104010.0,104000.0,0.00148881]
[1748647270290,0.21151746,104010.0,104000.0,0.1927965]
[1748647270500,0.21151746,104010.0,104000.0,0.21202698]
[1748647270724,0.20190347,104010.0,104000.0,0.1927965]
[1748647270953,0.20190347,104010.0,104000.0,0.2140268]
[1748647271179,0.20190347,104010.0,104000.0,0.00248881]
[1748647271390,0.20190347,104010.0,104000.0,0.00348881]
[1748647271606,0.21820347,104010.0,104000.0,0.00348881]
[1748647272039,0.20190347,104010.0,104000.0,0.00348881]
[1748647272245,0.1922892,104010.0,104000.0,0.00348881]
[1748647272881,0.1922892,104010.0,104000.0,0.00248881]
[1748647273091,0.1922892,104010.0,104000.0,0.00048881]
[1748647274580,0.1922892,104010.0,104000.0,0.01010419]
[1748647274843,0.1922892,104010.0,104000.0,0.23175886]
[1748647275056,0.1922892,104010.0,104000.0,0.00048881]
[1748647275470,0.1512892,104010.0,104000.0,0.20241188]
[1748647275682,0.16090347,104010.0,104000.0,0.22164218]
[1748647275926,0.01922771,104010.0,104000.0,0.24087173]
[1748647276163,0.02883948,104020.0,104010.0,0.21151728]
[1748647276382,0.24033679,104020.0,104010.0,0.21151728]
[1748647276595,1.04983223,104030.0,104020.0,0.20188406]
[1748647276596,0.69176484,104030.0,104020.0,0.20188406]
[1748647276810,0.02883921,104020.0,104010.0,0.21151728]
[1748647277239,0.03845246,104020.0,104010.0,0.22113109]
[1748647277446,0.0520659,104020.0,104010.0,0.31364231]
[1748647277775,0.0480659,104020.0,104010.0,0.31364231]
[1748647278201,0.22111075,104020.0,104010.0,0.31364315]
[1748647278412,0.02883643,104030.0,104020.0,0.21149694]
[1748647278625,0.02883643,104030.0,104020.0,0.30400844]
[1748647278801,0.02883643,104030.0,104020.0,0.31362132]
[1748647279072,0.01922235,104040.0,104030.0,0.22108894]
[1748647279290,0.00961104,104040.0,104030.0,0.22108894]
[1748647279513,0.22104653,104050.0,104040.0,0.21145665]
[1748647279725,0.23065729,104050.0,104040.0,0.24727861]
[1748647279945,0.20182604,104050.0,104040.0,0.04543327]
[1748647280156,0.22108894,104030.0,104020.0,0.75672948]
[1748647280364,0.0192242,104030.0,104020.0,0.7759559]
[1748647280572,0.20184543,104040.0,104030.0,0.21147717]
[1748647280783,0.21160333,104040.0,104030.0,0.22108931]
[1748647280996,0.21160333,104040.0,104030.0,0.09251122]
[1748647281204,0.21160333,104040.0,104020.0,0.58759065]
[1748647281205,0.20186465,104030.0,104020.0,0.58759065]
[1748647281416,0.20186465,104030.0,104020.0,0.36648]
[1748647281625,0.22111066,104020.0,104010.0,0.5322892]
[1748647281837,0.01922586,104020.0,104010.0,0.68838576]
[1748647282045,0.01922577,104020.0,104010.0,0.78089698]
[1748647282650,0.21149713,104020.0,104010.0,0.34]
[1748647282899,0.21149713,104020.0,104010.0,0.55151756]
[1748647283124,0.01922586,104020.0,104010.0,0.57074527]
[1748647283348,0.18009134,104030.0,104020.0,0.20188424]
[1748647283596,0.0192242,104030.0,104020.0,0.23072391]
[1748647283826,0.00961178,104030.0,104020.0,0.42527488]
[1748647284039,0.01922392,104030.0,104020.0,0.42527488]
[1748647284249,0.03844812,104030.0,104020.0,0.40947599]
[1748647284459,0.24031277,104030.0,104020.0,0.40947599]
[1748647284667,0.2403135,104030.0,104020.0,0.40947599]
[1748647284875,0.2403135,104030.0,104020.0,0.41908906]
[1748647285079,0.2423135,104030.0,104020.0,0.40947608]
[1748647285289,0.2423135,104030.0,104020.0,0.41908896]
[1748647285290,0.23270099,104030.0,104020.0,0.41908896]
[1748647285498,0.23470099,104030.0,104020.0,0.41908896]
[1748647285714,0.19227071,104020.0,104000.0,0.38050445]
[1748647285930,0.19425223,104030.0,104020.0,0.21149713]
[1748647286162,0.002,104030.0,104020.0,0.23691001]
[1748647286615,0.01936921,104040.0,104030.0,0.21147726]
[1748647286831,0.00014649,104040.0,104030.0,0.37043312]
[1748647287049,0.00014649,104040.0,104030.0,1.28181776]
[1748647287710,0.06139487,104080.0,104070.0,0.22100397]
[1748647287923,0.27291633,104080.0,104070.0,0.2113957]
[1748647288134,0.22100425,104070.0,104060.0,0.22100866]
[1748647288340,0.01921653,104070.0,104060.0,0.32647215]
[1748647288547,0.02882507,104070.0,104060.0,0.31686296]
[1748647288755,0.02882507,104070.0,104060.0,0.32647215]
[1748647288989,0.0384338,104070.0,104060.0,0.41888238]
[1748647289206,0.24022105,104070.0,104060.0,0.41888256]
[1748647289428,0.23261205,104070.0,104060.0,0.31686305]
[1748647289639,0.23261261,104070.0,104060.0,0.32647233]
[1748647289848,0.03082498,104070.0,104060.0,0.33608152]
[1748647290071,0.24222087,104070.0,104060.0,0.41898355]
[1748647290278,0.03082554,104070.0,104060.0,0.42859274]
[1748647290694,0.0232169,104070.0,104060.0,0.42859274]
[1748647291123,0.03282498,104070.0,104060.0,0.42859274]
[1748647291335,0.01360808,104070.0,104060.0,0.44449274]
[1748647291550,0.004,104070.0,104060.0,0.46322691]
[1748647291766,0.004,104070.0,104060.0,0.47822691]
[1748647292833,0.004,104070.0,104060.0,1.02767479]
[1748647293052,0.01360808,104070.0,104060.0,1.02767479]
[1748647293263,0.0328247,104070.0,104060.0,0.52825893]
[1748647293471,0.0328247,104070.0,104060.0,0.51325893]
[1748647293688,0.02321625,104070.0,104060.0,0.51325893]
[1748647293934,0.002,104070.0,104060.0,0.89145893]
[1748647294148,0.03082489,104070.0,104060.0,0.98397015]
[1748647294357,0.0308248,104070.0,104060.0,0.87565893]
[1748647294569,0.01160808,104070.0,104060.0,0.89145893]
[1748647294774,0.00960808,104070.0,104060.0,0.89145893]
[1748647295240,0.07114893,104080.0,104070.0,0.22100397]
[1748647295460,0.08075673,104080.0,104070.0,0.31351519]
[1748647296095,0.28252459,104080.0,104070.0,0.30390692]
[1748647296314,0.23273688,104080.0,104070.0,0.32312373]
[1748647296522,0.02136122,104080.0,104070.0,0.332732]
[1748647296729,0.00214644,104080.0,104070.0,0.332732]
[1748647296908,0.0137536,104080.0,104070.0,0.4439863]
[1748647297140,0.02336094,104080.0,104070.0,0.4439863]
[1748647297351,0.0137536,104080.0,104070.0,0.4439863]
[1748647297576,0.00414644,104080.0,104070.0,0.4439863]
[1748647297845,0.00414644,104080.0,104070.0,1.20689094]
[1748647298945,0.02451284,104090.0,104080.0,0.22098273]
[1748647299163,0.02451284,104090.0,104080.0,1.54841289]
[1748647299375,0.02451284,104090.0,104080.0,1.14150825]
[1748647300265,0.02451284,104090.0,104080.0,1.54841289]
[1748647301131,0.02451284,104090.0,104080.0,1.18805289]
[1748647301364,0.02451284,104090.0,104080.0,1.55105289]
[1748647302049,0.02451284,104090.0,104080.0,1.19105289]
[1748647302265,0.02451284,104090.0,104080.0,0.78414825]
[1748647302476,0.24547406,104090.0,104080.0,0.75534825]
[1748647302667,0.02451284,104090.0,104080.0,1.24810825]
[1748647302899,0.02451284,104090.0,104080.0,1.26460825]
[1748647303129,0.01683186,104090.0,104080.0,1.25444167]
[1748647303335,0.66977652,104130.0,104120.0,0.20169026]
[1748647303555,0.21131439,104110.0,104100.0,0.6996]
[1748647303802,0.19223246,104120.0,104100.0,0.0958543]
[1748647304015,0.00960439,104110.0,104090.0,0.34]
[1748647304219,0.06001363,104110.0,104090.0,0.0958543]
[1748647304430,0.27132926,104110.0,104090.0,0.09251122]
[1748647304652,0.05040906,104110.0,104100.0,0.00960605]
[1748647304863,0.06001391,104110.0,104100.0,0.201729]
[1748647305085,0.06001391,104110.0,104080.0,0.62733502]
[1748647305086,0.02881685,104100.0,104080.0,0.62733502]
[1748647305292,0.02540513,104110.0,104090.0,0.2209615]
[1748647305504,0.02500531,104100.0,104090.0,0.22096159]
[1748647305719,0.69926641,104120.0,104110.0,0.1921045]
[1748647305939,0.69926641,104120.0,104110.0,0.21131439]
[1748647305940,0.00014641,104120.0,104110.0,0.21131439]
[1748647306161,0.00014641,104120.0,104110.0,0.22091896]
[1748647306398,0.04095006,104120.0,104110.0,0.20170954]
[1748647306627,0.03134641,104120.0,104110.0,0.26222329]
[1748647306838,0.05055362,104120.0,104110.0,0.25261872]
[1748647307047,0.06015764,104120.0,104110.0,0.26222329]
[1748647307277,0.05636139,104120.0,104110.0,0.26222329]
[1748647307539,0.06696634,104120.0,104110.0,0.22091896]
[1748647307776,0.24944799,104120.0,104110.0,0.23052363]
[1748647307994,0.25905229,104120.0,104110.0,0.23052363]
[1748647308224,0.06696624,104120.0,104110.0,0.23052363]
[1748647308448,0.03195783,104120.0,104110.0,0.26992457]
[1748647308661,0.0223539,104120.0,104110.0,0.26992457]
[1748647308892,0.01275006,104120.0,104110.0,0.26992457]
[1748647309112,0.01274997,104120.0,104110.0,0.26992457]
[1748647309374,0.01274988,104120.0,104110.0,0.26992457]
[1748647309790,0.02235353,104120.0,104110.0,0.26992457]
[1748647310001,0.04156129,104120.0,104110.0,0.23052363]
[1748647310242,0.0511654,104120.0,104110.0,0.23052363]
[1748647310476,0.028814,104110.0,104100.0,0.22094064]
[1748647310678,0.01920906,104110.0,104100.0,0.23054614]
[1748647310883,0.02881381,104110.0,104100.0,0.23054614]
[1748647311093,0.1921045,104110.0,104100.0,0.32305736]
[1748647311298,0.22091915,104110.0,104100.0,0.30384618]
[1748647311514,0.22091915,104110.0,104100.0,0.22094092]
[1748647311515,0.21131476,104110.0,104100.0,0.22094092]
[1748647311724,0.22094091,104100.0,104090.0,0.18836552]
[1748647311934,0.21133514,104100.0,104090.0,0.19214141]
[1748647312151,0.21133514,104100.0,104090.0,0.20174838]
[1748647312366,0.22096186,104090.0,104080.0,0.60711987]
[1748647312579,0.02881999,104090.0,104080.0,0.82752474]
[1748647312793,0.23056837,104090.0,104080.0,0.8179174]
[1748647313065,0.01921552,104080.0,104070.0,0.20178698]
[1748647313284,0.22100443,104070.0,104060.0,0.39005062]
[1748647313492,0.22100443,104070.0,104060.0,0.82402965]
[1748647313493,0.01921672,104070.0,104060.0,0.82402965]
[1748647313703,0.00960827,104070.0,104060.0,0.83942965]
[1748647313919,0.00960744,104080.0,104070.0,0.22100425]
[1748647314137,0.22098209,104080.0,104070.0,0.22100443]
[1748647314395,0.71129044,104080.0,104070.0,0.00414641]
[1748647314603,0.67909044,104080.0,104070.0,0.00014641]
[1748647314808,0.70793444,104080.0,104070.0,0.00014641]
[1748647315234,0.74013444,104080.0,104070.0,0.00014641]
[1748647315446,0.1568983,104080.0,104070.0,0.22115038]
[1748647315658,0.20174848,104090.0,104080.0,0.20176777]
[1748647315659,0.02520624,104090.0,104080.0,0.20176777]
[1748647315864,0.5936815,104090.0,104070.0,0.21154119]
[1748647316068,0.6102815,104090.0,104070.0,0.21154119]
[1748647316285,0.6102815,104090.0,104070.0,0.25221487]
[1748647316502,0.61988857,104090.0,104070.0,0.26182341]
[1748647316706,0.61028215,104090.0,104080.0,0.21137576]
[1748647317761,0.61228215,104090.0,104080.0,0.22098356]
[1748647317985,0.60267545,104090.0,104080.0,0.2490877]
[1748647318196,0.60267545,104090.0,104080.0,0.2482077]
[1748647318405,0.60267545,104090.0,104080.0,0.2578156]
[1748647318823,0.60267545,104090.0,104080.0,0.2482077]
[1748647319036,0.60267545,104090.0,104080.0,0.23947971]
[1748647319254,0.59406848,104090.0,104080.0,0.19215987]
[1748647319485,0.59406848,104090.0,104080.0,0.21137576]
[1748647319683,0.58446141,104090.0,104070.0,0.26182295]
[1748647319892,0.00960771,104080.0,104070.0,0.25221524]
[1748647320114,0.01921533,104080.0,104070.0,0.25221524]
[1748647320335,0.02817738,104080.0,104070.0,0.25221524]
[1748647320559,0.01921533,104080.0,104070.0,0.25221524]
[1748647320865,0.2113752,104080.0,104070.0,0.00014641]
[1748647320879,0.25163645,104080.0,104070.0,0.00014641]
[1748647321088,0.2426752,104080.0,104070.0,0.00014641]
[1748647321514,0.3620314,104080.0,104070.0,0.00014641]
[1748647321741,0.35407035,104080.0,104070.0,0.00014641]
[1748647323226,0.69707035,104080.0,104070.0,0.00014641]
[1748647323432,0.69607035,104080.0,104070.0,0.00014641]
[1748647323846,0.69907035,104080.0,104070.0,0.00014641]
[1748647324265,1.05435035,104080.0,104070.0,0.00014641]
[1748647324472,0.6532295,104080.0,104070.0,0.00014641]
[1748647324687,0.13067753,104080.0,104070.0,0.00014641]
[1748647324891,0.13067753,104080.0,104070.0,0.21154248]
[1748647324892,0.01560753,104080.0,104070.0,0.21154248]
[1748647325112,0.0444303,104080.0,104070.0,0.2912666]
[1748647325315,0.23659017,104080.0,104070.0,0.27204979]
[1748647325522,0.21737539,104080.0,104070.0,0.21154248]
[1748647325738,0.19815987,104080.0,104070.0,0.00014641]
[1748647325977,0.19515987,104080.0,104070.0,0.00014641]
[1748647326616,0.20276767,104080.0,104070.0,0.20193348]
[1748647327043,0.20476767,104080.0,104070.0,0.00014641]
[1748647327252,0.20476767,104080.0,104070.0,0.20193357]
[1748647327460,0.01260753,104080.0,104070.0,0.2644067]
[1748647327698,0.01260734,104080.0,104070.0,0.29051515]
[1748647327934,0.23359053,104080.0,104070.0,0.29051515]
[1748647328440,0.23359053,104080.0,104070.0,0.05990273]
[1748647328687,0.21437566,104080.0,104070.0,0.00014641]
[1748647328909,0.21437566,104080.0,104070.0,0.19232475]
[1748647329141,0.21437566,104080.0,104070.0,0.20193348]
[1748647329627,0.20476786,104080.0,104070.0,0.00014641]
[1748647330055,0.21372953,104080.0,104070.0,0.00014641]
[1748647330276,0.20476786,104080.0,104070.0,0.00014641]
[1748647330515,0.213729,104080.0,104070.0,0.00014641]
[1748647330747,0.22086786,104080.0,104070.0,0.00014641]
[1748647330974,0.20476786,104080.0,104070.0,0.00014641]
[1748647331210,0.22096786,104080.0,104070.0,0.00014641]
[1748647331418,1.19295394,104080.0,104070.0,0.00014641]
[1748647332041,1.15164301,104080.0,104070.0,0.00014641]
[1748647332684,1.16060228,104080.0,104070.0,0.00014641]
[1748647332893,1.15164301,104080.0,104070.0,0.00014641]
[1748647334337,1.16060291,104080.0,104070.0,0.00014641]
[1748647334547,1.15164301,104080.0,104070.0,0.00014641]
[1748647334750,1.1606029,104080.0,104070.0,0.00014641]
[1748647334952,1.15164301,104080.0,104070.0,0.00014641]
[1748647335781,1.15164301,104080.0,104070.0,0.22115038]
[1748647335782,0.003,104080.0,104070.0,0.22115038]
[1748647336040,0.003,104080.0,104070.0,0.73627354]
[1748647336229,0.003,104080.0,104070.0,1.48317818]
[1748647336634,0.001,104080.0,104070.0,1.48317818]
[1748647336836,0.03842272,104100.0,104090.0,0.2209615]
[1748647337014,0.24015181,104100.0,104090.0,0.23254838]
[1748647337215,0.01921312,104090.0,104080.0,0.57664603]
[1748647337420,0.01921275,104090.0,104080.0,0.70433584]
[1748647337624,0.02881954,104090.0,104080.0,0.70330033]
[1748647338195,0.01921266,104090.0,104080.0,0.70330033]
[1748647338719,0.19915523,104100.0,104080.0,0.71290758]
[1748647338952,0.20174801,104090.0,104080.0,0.0988543]
[1748647339164,0.20174801,104090.0,104080.0,0.003]
[1748647339369,0.20174801,104090.0,104080.0,0.006]
[1748647339846,0.20174801,104090.0,104080.0,0.003]
[1748647340054,0.20174801,104090.0,104080.0,0.006]
[1748647340464,0.31214316,104090.0,104080.0,0.006]
[1748647341502,0.34304316,104090.0,104080.0,0.006]
[1748647341706,0.68304316,104090.0,104080.0,0.003]
[1748647342187,0.20176767,104080.0,104070.0,0.00014641]
[1748647342393,0.69806282,104080.0,104070.0,0.00014641]
[1748647344332,0.31216282,104080.0,104070.0,0.00014641]
[1748647344551,0.65238197,104080.0,104070.0,0.00014641]
[1748647344965,0.65338197,104080.0,104070.0,0.00014641]
[1748647345373,0.73817947,104080.0,104070.0,0.00014641]
[1748647345594,0.68628197,104080.0,104070.0,0.00014641]
[1748647345993,0.67128197,104080.0,104070.0,0.00014641]
[1748647346902,0.70082282,104080.0,104070.0,0.00014641]
[1748647347319,0.72966882,104080.0,104070.0,0.00014641]
[1748647350566,0.34400882,104080.0,104070.0,0.00014641]
[1748647350781,0.03182277,104080.0,104070.0,0.00014641]
[1748647350995,0.22398264,104080.0,104070.0,0.2277423]
[1748647351210,0.22398264,104080.0,104070.0,0.27132112]
[1748647351488,0.2143752,104080.0,104070.0,0.06953396]
[1748647351704,0.20476767,104080.0,104070.0,0.05333396]
[1748647351924,0.20476767,104080.0,104070.0,0.00014641]
[1748647352792,0.028841,104100.0,104070.0,1.18073301]
[1748647353007,0.23054595,104100.0,104090.0,0.22096168]
[1748647353215,0.23054595,104100.0,104090.0,0.25456578]
[1748647353423,0.00960402,104120.0,104090.0,0.3087775]
[1748647353645,0.02881428,104110.0,104090.0,0.0945094]
[1748647353871,0.00960439,104110.0,104090.0,0.29625684]
[1748647354085,0.00960439,104110.0,104090.0,0.10411647]
[1748647354288,0.00960439,104110.0,104100.0,0.00960596]
[1748647354503,0.66187075,104120.0,104100.0,0.23528388]
[1748647354504,0.46978253,104120.0,104100.0,0.23528388]
[1748647355157,0.47938553,104120.0,104100.0,0.24488938]
[1748647355370,0.82898964,104120.0,104110.0,0.1921045]
[1748647355584,0.80978151,104120.0,104110.0,0.1921045]
[1748647355817,0.028832,104130.0,104120.0,0.20169026]
[1748647356037,0.4489,104140.0,104130.0,0.1920676]
[1748647356251,0.028829,104140.0,104130.0,0.22087643]
[1748647356473,0.45415287,104150.0,104140.0,0.19204916]
[1748647356693,1.07271784,104150.0,104140.0,0.19204916]
[1748647356908,1.07271784,104150.0,104140.0,0.31367515]
[1748647356909,0.05178771,104150.0,104140.0,0.31367515]
[1748647357142,0.05178771,104150.0,104140.0,0.32987515]
[1748647357356,0.00960162,104140.0,104130.0,0.2112737]
[1748647357569,0.02220334,104140.0,104130.0,0.20167098]
[1748647357785,0.0288093,104130.0,104120.0,0.0422043]
[1748647358007,0.23050177,104120.0,104110.0,0.01148221]
[1748647358214,0.01920795,104120.0,104110.0,0.21319184]
[1748647358435,0.01920795,104120.0,104110.0,0.22091905]
[1748647358645,0.2208983,104120.0,104110.0,0.21131467]
[1748647358856,0.01920795,104120.0,104110.0,0.22091942]
[1748647359127,0.2208983,104120.0,104110.0,0.23052418]
[1748647359335,0.2208983,104120.0,104110.0,0.23352418]
[1748647359546,0.2208983,104120.0,104110.0,0.22391942]
[1748647359775,0.20169035,104120.0,104110.0,0.004]
[1748647359984,0.20169035,104120.0,104110.0,0.21531448]
[1748647360191,0.20169035,104120.0,104110.0,0.29662816]
[1748647360438,0.00960347,104120.0,104110.0,0.3158374]
[1748647360649,0.01920703,104120.0,104110.0,0.4270917]
[1748647360860,0.23047982,104130.0,104120.0,0.20167293]
[1748647361079,0.20169035,104120.0,104110.0,0.38287733]
[1748647361294,0.20169035,104120.0,104110.0,0.21531448]
[1748647361513,0.20169035,104120.0,104110.0,0.22491933]
[1748647361730,0.21129437,104120.0,104110.0,0.22391933]
[1748647361946,0.21129437,104120.0,104110.0,0.003]
[1748647362156,0.20169035,104120.0,104110.0,0.003]
[1748647362851,0.20169035,104120.0,104110.0,0.005]
[1748647364561,0.20169035,104120.0,104110.0,0.20670972]
[1748647364777,0.1920676,104130.0,104120.0,0.20169035]
[1748647364778,0.20167079,104130.0,104120.0,0.20169035]
[1748647364990,0.20167079,104130.0,104110.0,0.30405422]
[1748647365198,0.22089774,104120.0,104110.0,0.28484517]
[1748647365437,0.03841553,104120.0,104110.0,0.26964517]
[1748647365644,0.02881151,104120.0,104110.0,0.27724974]
[1748647366063,0.64094916,104140.0,104120.0,0.22089784]
[1748647366273,0.66015379,104140.0,104130.0,0.20167088]
[1748647366493,0.66015379,104140.0,104130.0,0.21127361]
[1748647366768,0.45850181,104140.0,104130.0,0.22087643]
[1748647366980,0.66975523,104140.0,104130.0,0.20167079]
[1748647367196,0.48730843,104140.0,104130.0,0.22087671]
[1748647367436,0.67935759,104140.0,104130.0,0.27844571]
[1748647367663,0.67935768,104140.0,104130.0,0.27844571]
[1748647367883,0.47770598,104140.0,104130.0,0.2784458]
[1748647368099,0.22974773,104150.0,104140.0,0.22085523]
[1748647368316,0.22974828,104150.0,104140.0,0.20165143]
[1748647368530,0.18874828,104150.0,104140.0,0.29416283]
[1748647368744,0.18874828,104150.0,104140.0,0.09251122]
[1748647369387,0.19074828,104150.0,104140.0,0.09251122]
[1748647369807,0.20165143,104140.0,104130.0,0.38529446]
[1748647370030,0.2112737,104130.0,104120.0,0.04749279]
[1748647370263,0.20169016,104120.0,104110.0,0.01148221]
[1748647370528,0.20169016,104120.0,104110.0,0.02108743]
[1748647370737,0.01920961,104110.0,104100.0,0.57027543]
[1748647370948,0.01920906,104110.0,104100.0,1.0506931]
[1748647371162,0.02881391,104110.0,104100.0,1.0506931]
[1748647371374,0.02881391,104110.0,104100.0,0.09265763]
[1748647371375,0.21131466,104110.0,104100.0,0.09265763]
[1748647371586,0.21131466,104110.0,104100.0,0.00014641]
[1748647371819,0.21131466,104110.0,104100.0,0.00975255]
[1748647372032,0.21131466,104110.0,104100.0,0.00014641]
[1748647372243,0.21131466,104110.0,104100.0,0.00314641]
[1748647372657,0.21131466,104110.0,104100.0,0.00014641]
[1748647372871,0.21131466,104110.0,104100.0,0.00214641]
[1748647373289,0.21131466,104110.0,104100.0,0.21348155]
[1748647373495,0.21131466,104110.0,104100.0,0.21748155]
[1748647373702,0.20170972,104110.0,104100.0,0.25746562]
[1748647373913,0.1921045,104110.0,104100.0,0.00214641]
[1748647374120,0.1921045,104110.0,104100.0,0.00514641]
[1748647375493,0.2879588,104110.0,104100.0,0.00514641]
[1748647376159,0.2469588,104110.0,104100.0,0.00514641]
[1748647376391,0.2469588,104110.0,104100.0,0.00214641]
[1748647377261,0.5869588,104110.0,104100.0,0.00014641]
[1748647377717,0.5879588,104110.0,104100.0,0.00014641]
[1748647379269,0.9419988,104110.0,104100.0,0.00014641]
[1748647381708,0.5054645,104110.0,104100.0,0.00014641]
[1748647383187,0.6013188,104110.0,104100.0,0.00014641]
[1748647384027,0.5603188,104110.0,104100.0,0.00014641]
[1748647384249,0.99965715,104110.0,104100.0,0.00014641]
[1748647384465,0.95468111,104110.0,104100.0,0.00014641]
[1748647384702,0.90989954,104110.0,104100.0,0.00014641]
[1748647384903,1.28222906,104110.0,104100.0,0.00014641]
[1748647385109,1.30075471,104110.0,104100.0,0.00014641]
[1748647385336,0.4499,104110.0,104100.0,0.21148118]
[1748647385544,0.4499,104110.0,104100.0,0.23069245]
[1748647385794,0.45950457,104110.0,104100.0,0.24511898]
[1748647386007,0.45950457,104110.0,104100.0,0.25472494]
[1748647386213,0.001,104110.0,104100.0,0.27393621]
[1748647386425,0.001,104110.0,104100.0,1.49890967]
[1748647386875,0.001,104110.0,104100.0,1.53487221]
[1748647387721,0.02880607,104140.0,104130.0,0.21127398]
[1748647387943,0.0192038,104140.0,104130.0,0.23047972]
[1748647388155,0.23380426,104160.0,104130.0,0.21127334]
[1748647388396,0.10478712,104160.0,104150.0,0.23043555]
[1748647388609,0.02813284,104160.0,104150.0,0.23043555]
[1748647388813,0.04733369,104160.0,104150.0,0.23043573]
[1748647389023,0.01853269,104160.0,104150.0,0.23043555]
[1748647389256,0.03773289,104160.0,104150.0,0.285405]
[1748647389482,0.02813265,104160.0,104150.0,0.29457571]
[1748647389738,0.04782117,104160.0,104150.0,0.29457571]
[1748647390158,0.04782117,104160.0,104150.0,0.285405]
[1748647390372,0.05742169,104160.0,104150.0,0.285405]
[1748647390597,0.04782117,104160.0,104150.0,0.285405]
[1748647390816,0.04782117,104160.0,104150.0,0.286405]
[1748647391488,0.23023358,104160.0,104150.0,0.22183466]
[1748647391703,0.18923358,104160.0,104150.0,0.001]
[1748647392338,0.28508788,104160.0,104150.0,0.001]
[1748647392546,0.28508788,104160.0,104130.0,0.27369453]
[1748647392547,0.00960162,104140.0,104130.0,0.27369453]
[1748647392759,0.01920352,104140.0,104130.0,0.27369453]
[1748647392967,0.03840787,104140.0,104130.0,0.29029453]
[1748647393187,0.22085596,104140.0,104130.0,0.24488606]
[1748647393404,0.20167098,104130.0,104120.0,0.21127781]
[1748647393613,0.01920592,104130.0,104120.0,0.23048567]
[1748647393824,0.02880838,104130.0,104120.0,0.24008932]
[1748647394033,0.03841157,104130.0,104120.0,0.24008932]
[1748647394253,0.03841157,104130.0,104120.0,0.30440751]
[1748647394683,0.23047917,104130.0,104120.0,0.00915324]
[1748647394895,0.2112738,104130.0,104120.0,0.00915324]
[1748647395105,0.2112738,104130.0,104120.0,0.20123929]
[1748647395316,0.2112738,104130.0,104120.0,0.21129418]
[1748647395755,0.00960273,104130.0,104120.0,0.24310597]
[1748647395981,0.01920564,104130.0,104120.0,0.2901243]
[1748647396191,0.03841211,104130.0,104120.0,0.2901243]
[1748647396416,0.24008309,104130.0,104120.0,0.24510616]
[1748647396625,0.24008309,104130.0,104120.0,0.24510569]
[1748647397039,0.23048036,104130.0,104120.0,0.24510569]
[1748647397364,0.00960245,104140.0,104130.0,0.2112737]
[1748647397600,0.21125397,104140.0,104130.0,0.20167079]